bitfinex-derivatives/quotes_SOLF0:USTF0_20250817
["timestamp","ask_amount","ask_price","bid_price","bid_amount"]
[1755440902808,2.94,193.12,193.11,2.89]
[1755440904713,2.94,193.12,193.11,4.57424035]
[1755440905017,2.94,193.14,193.12,2.89]
[1755440905212,2.94,193.14,193.13,4.57424035]
[1755440905513,6.69456461,193.14,193.13,4.57424035]
[1755440905714,11.48848828,193.14,193.13,4.57424035]
[1755440906016,11.48848828,193.14,193.13,1.68424035]
[1755440906917,11.48848828,193.14,193.12,4.57424035]
[1755440907114,2.94,193.22,193.13,2.89]
[1755440907318,2.94,193.22,193.12,1.68424035]
[1755440907319,2.94,193.2,193.18,4.57424035]
[1755440907616,7.73343393,193.19,193.18,4.57424035]
[1755440908015,2.94,193.19,193.18,4.57424035]
[1755440910520,2.94,193.19,193.18,2.89]
[1755440911015,2.94,193.19,193.16,5.51417383]
[1755440911316,2.94,193.19,193.17,2.89]
[1755440911819,2.62417383,193.26,193.17,2.89]
[1755440912016,2.94,193.22,193.17,2.89]
[1755440912220,4.7856422,193.21,193.16,2.62417383]
[1755440912417,2.62417383,193.26,193.16,2.62417383]
[1755440912617,2.94,193.24,193.17,2.89]
[1755440912819,2.94,193.22,193.17,2.89]
[1755440913016,2.94,193.2,193.17,2.89]
[1755440913617,2.94,193.2,193.18,2.89]
[1755440914321,2.94,193.28,193.19,2.89]
[1755440914521,2.94,193.26,193.19,2.89]
[1755440914722,2.94,193.24,193.19,2.89]
[1755440914917,2.94,193.22,193.19,2.89]
[1755440916818,2.62417383,193.29,193.2,2.89]
[1755440917118,2.94,193.27,193.2,2.89]
[1755440917320,8.52491158,193.26,193.2,2.89]
[1755440917623,2.94,193.24,193.2,2.89]
[1755440917831,2.94,193.22,193.2,2.89]
[1755440923028,2.94,193.22,193.21,2.89]
[1755440924425,2.62417383,193.29,193.21,2.89]
[1755440924628,9.80746014,193.28,193.17,2.89]
[1755440924926,2.94,193.26,193.17,2.89]
[1755440925126,2.94,193.24,193.17,2.89]
[1755440929932,2.94,193.24,193.19,2.62417383]
[1755440930131,2.96,193.32,193.22,2.62417383]
[1755440930338,9.81380018,193.31,193.23,2.77]
[1755440930533,2.96,193.29,193.23,2.77]
[1755440930831,2.96,193.27,193.23,2.77]
[1755440931024,4.77932949,193.26,193.23,2.77]
[1755440931223,2.96,193.26,193.23,2.77]
[1755440931432,2.96,193.27,193.23,2.77]
[1755440933032,2.96,193.26,193.23,2.77]
[1755440933731,347.88,193.34,193.23,2.77]
[1755440933932,2.96,193.32,193.23,2.77]
[1755440934139,2.96,193.3,193.23,2.77]
[1755440934326,2.96,193.28,193.23,2.77]
[1755440938343,2.96,193.28,193.26,1.67820656]
[1755440938536,2.96,193.28,193.27,2.77]
[1755440938729,2.96,193.28,193.26,1.67820656]
[1755440938730,4.77239731,193.28,193.26,1.67820656]
[1755440938936,7.73239731,193.27,193.24,4.44820656]
[1755440939236,2.96,193.26,193.24,4.44820656]
[1755440940236,2.96,193.26,193.19,4.44820656]
[1755440940443,2.96,193.24,193.2,2.77]
[1755440941040,2.96,193.24,193.16,2.62403411]
[1755440941243,2.96,193.24,193.17,2.77]
[1755440941643,2.96,193.24,193.18,2.77]
[1755440942138,4.77478795,193.23,193.17,2.62403411]
[1755440942337,2.96,193.22,193.19,2.77]
[1755440943346,2.96,193.22,193.17,2.77]
[1755440943643,2.96,193.21,193.17,2.77]
[1755440944243,2.96,193.23,193.17,2.77]
[1755440944739,2.96,193.23,193.19,2.62403411]
[1755440944944,2.96,193.23,193.2,2.77]
[1755440945145,2.62403411,193.32,193.2,2.77]
[1755440945344,2.96,193.3,193.19,2.62403411]
[1755440945543,2.96,193.28,193.2,2.77]
[1755440945740,8.52287236,193.27,193.2,2.77]
[1755440945944,2.96,193.25,193.2,2.77]
[1755440946439,2.96,193.31,193.2,2.77]
[1755440946646,2.96,193.29,193.22,2.62403411]
[1755440946844,2.96,193.27,193.23,2.77]
[1755440947540,2.96,193.35,193.25,5.39403411]
[1755440947745,2.96,193.33,193.26,2.77]
[1755440947941,2.96,193.31,193.26,2.77]
[1755440948449,2.96,193.31,193.27,2.77]
[1755440948649,4.62874932,193.3,193.27,2.77]
[1755440948848,2.96,193.29,193.27,2.77]
[1755440949043,125.86,193.37,193.27,2.77]
[1755440949244,2.96,193.28,193.27,2.77]
[1755440949549,2.96,193.3,193.27,2.77]
[1755440949750,2.96,193.36,193.27,2.77]
[1755440949949,9.66926635,193.35,193.27,2.77]
[1755440950250,2.96,193.33,193.27,2.77]
[1755440950548,2.96,193.31,193.28,2.77]
[1755440951247,2.96,193.31,193.25,2.62403411]
[1755440951448,2.96,193.31,193.29,2.77]
[1755440951752,2.96,193.36,193.29,2.77]
[1755440952050,2.96,193.34,193.29,2.77]
[1755440952254,2.96,193.32,193.29,2.77]
[1755440952449,11.34023621,193.31,193.26,2.77]
[1755440952650,2.96,193.3,193.26,2.77]
[1755440952952,2.96,193.31,193.29,2.77]
[1755440953549,2.96,193.36,193.29,2.77]
[1755440953750,2.96,193.34,193.29,2.77]
[1755440954347,2.96,193.34,193.28,2.62403411]
[1755440954348,2.96,193.33,193.31,2.62403411]
[1755440954544,2.96,193.33,193.32,2.77]
[1755440956049,353.44349948,193.42,193.32,2.77]
[1755440956255,15.52,193.47,193.35,2.77]
[1755440956256,2.96,193.4,193.35,2.77]
[1755440956448,2.96,193.38,193.35,2.77]
[1755440956648,5.80349948,193.47,193.35,2.77]
[1755440956951,2.96,193.45,193.35,2.77]
[1755440957152,2.62403411,193.47,193.35,2.77]
[1755440957153,2.96,193.43,193.35,2.77]
[1755440957456,2.96,193.41,193.35,2.77]
[1755440963760,2.96,193.41,193.32,2.62403411]
[1755440963965,125.98,193.47,193.32,2.62403411]
[1755440963966,4.62022097,193.4,193.32,2.92]
[1755440964156,2.77,193.39,193.32,2.92]
[1755440967454,2.77,193.39,193.3,2.92]
[1755440967656,2.77,193.37,193.3,2.92]
[1755440973059,2.77,193.35,193.27,2.92]
[1755440974468,4.62660635,193.34,193.27,2.92]
[1755440974666,2.62403411,193.37,193.27,2.92]
[1755440974854,2.77,193.33,193.27,2.92]
[1755440981769,2.77,193.33,193.28,2.92]
[1755440985172,2.77,193.36,193.28,2.92]
[1755440986475,8.37428225,193.35,193.28,2.92]
[1755440986681,2.77,193.41,193.28,2.92]
[1755440986972,2.77,193.39,193.33,2.62403411]
[1755440987173,2.77,193.44,193.34,2.92]
[1755440987380,2.77,193.42,193.34,2.92]
[1755440987674,8.42753359,193.48,193.34,2.92]
[1755440987675,2.93,193.4,193.34,2.92]
[1755440990471,8.38251661,193.39,193.33,5.52403411]
[1755440990774,2.93,193.38,193.34,2.9]
[1755440990969,2.93,193.38,193.33,2.62403411]
[1755440991165,2.93,193.44,193.34,2.9]
[1755440991370,2.93,193.42,193.34,2.9]
[1755440991573,2.93,193.4,193.34,2.9]
[1755440991873,2.93,193.38,193.34,2.9]
[1755440992175,2.93,193.44,193.34,2.9]
[1755440992376,2.93,193.42,193.34,2.9]
[1755440992573,2.93,193.4,193.34,2.9]
[1755440992770,2.93,193.38,193.34,2.9]
[1755440993277,2.62403411,193.45,193.34,2.9]
[1755440993475,12.63154686,193.44,193.34,2.9]
[1755440993679,2.93,193.42,193.34,2.9]
[1755440993877,2.93,193.4,193.34,2.9]
[1755440994076,4.65631897,193.39,193.34,2.9]
[1755440994284,2.93,193.38,193.34,2.9]
[1755440994776,2.93,193.44,193.34,2.9]
[1755440994978,2.93,193.42,193.34,2.9]
[1755440995179,2.93,193.4,193.34,2.9]
[1755440995370,3.75338791,193.39,193.34,2.9]
[1755440995576,2.93,193.38,193.34,2.9]
[1755440998576,2.62403411,193.45,193.33,2.62403411]
[1755440998776,2.93,193.43,193.34,2.9]
[1755440998970,2.93,193.41,193.34,2.9]
[1755440999174,2.93,193.39,193.34,2.9]
[1755440999579,2.93,193.39,193.33,2.62403411]
[1755440999778,2.93,193.39,193.33,5.52403411]
[1755440999981,2.93,193.39,193.33,2.62403411]
[1755441000176,2.93,193.39,193.34,2.9]
[1755441000481,2.93,193.37,193.32,2.9]
[1755441000679,2.93,193.35,193.32,2.9]
[1755441000875,2.93,193.35,193.33,2.9]
[1755441001478,2.93,193.42,193.33,2.62403411]
[1755441001780,2.93,193.4,193.34,2.9]
[1755441001974,2.93,193.38,193.34,2.9]
[1755441002376,2.93,193.38,193.33,2.62403411]
[1755441002676,2.93,193.37,193.33,2.62403411]
[1755441002882,2.93,193.37,193.31,2.9]
[1755441003977,8.42753359,193.46,193.33,2.62403411]
[1755441004178,2.93,193.44,193.34,2.9]
[1755441004380,2.93,193.42,193.34,2.9]
[1755441004577,2.93,193.4,193.34,2.9]
[1755441004779,2.93,193.38,193.34,2.9]
[1755441005980,2.62403411,193.46,193.34,2.9]
[1755441006185,2.93,193.4,193.36,2.62403411]
[1755441006382,125.98,193.47,193.37,2.9]
[1755441006683,2.93,193.41,193.37,2.9]
[1755441007991,2.93,193.4,193.37,2.9]
[1755441008585,2.93,193.46,193.37,2.9]
[1755441008780,9.70719522,193.45,193.37,2.9]
[1755441009086,2.93,193.43,193.37,2.9]
[1755441009274,2.93,193.41,193.37,2.9]
[1755441009880,2.93,193.49,193.37,2.9]
[1755441010181,2.93,193.47,193.39,2.62403411]
[1755441010372,8.4129956,193.46,193.4,2.9]
[1755441010577,2.93,193.44,193.4,2.9]
[1755441010781,4.6589403,193.43,193.39,2.62403411]
[1755441011078,2.93,193.42,193.4,2.9]
[1755441011273,2.93,193.42,193.41,2.9]
[1755441011674,2.93,193.5,193.38,2.62403411]
[1755441011879,2.93,193.48,193.39,2.9]
[1755441012179,2.93,193.46,193.39,2.9]
[1755441012379,2.93,193.44,193.39,2.9]
[1755441012584,2.93,193.51,193.39,2.9]
[1755441012889,2.93,193.49,193.39,2.9]
[1755441013089,2.93,193.47,193.39,2.9]
[1755441013284,2.93,193.45,193.39,2.9]
[1755441016588,2.93,193.52,193.44,2.62403411]
[1755441016786,2.93,193.5,193.44,5.52403411]
[1755441016990,2.93,193.48,193.44,5.52403411]
[1755441017188,2.93,193.48,193.44,2.9]
[1755441017590,2.78,193.52,193.43,2.87]
[1755441017790,2.78,193.5,193.43,2.87]
[1755441017990,2.78,193.48,193.43,2.87]
[1755441019291,2.78,193.52,193.42,5.49403411]
[1755441019494,2.78,193.5,193.43,2.87]
[1755441019692,2.78,193.48,193.43,2.87]
[1755441019894,2.78,193.46,193.45,2.87]
[1755441022492,2.78,193.52,193.45,2.87]
[1755441022698,2.78,193.5,193.45,2.87]
[1755441024287,8.38959726,193.49,193.45,2.87]
[1755441024492,2.78,193.48,193.45,2.87]
[1755441025398,2.78,193.48,193.42,2.62403411]
[1755441025597,2.78,193.46,193.41,2.87]
[1755441025893,2.62403411,193.52,193.39,2.62403411]
[1755441026100,2.78,193.5,193.42,2.62403411]
[1755441026399,2.78,193.48,193.43,2.87]
[1755441027296,2.78,193.47,193.43,2.87]
[1755441027496,2.78,193.54,193.43,2.87]
[1755441027692,2.78,193.52,193.43,2.87]
[1755441028001,2.78,193.5,193.43,2.87]
[1755441029002,2.78,193.48,193.42,2.62403411]
[1755441029298,2.78,193.48,193.42,5.49403411]
[1755441029900,2.78,193.48,193.42,2.62403411]
[1755441030401,2.78,193.48,193.44,2.87]
[1755441030703,2.78,193.48,193.42,5.49403411]
[1755441030900,2.78,193.46,193.4,2.87]
[1755441032502,8.4017127,193.45,193.4,2.87]
[1755441032794,2.78,193.44,193.41,2.87]
[1755441033402,2.78,193.51,193.41,2.87]
[1755441033596,2.78,193.49,193.41,2.87]
[1755441033796,2.78,193.47,193.41,2.87]
[1755441033996,2.78,193.45,193.41,2.87]
[1755441035201,2.78,193.51,193.39,2.62403411]
[1755441035403,2.78,193.49,193.4,2.87]
[1755441035600,2.78,193.47,193.4,2.87]
[1755441035799,8.42753359,193.52,193.4,2.87]
[1755441035800,2.78,193.45,193.4,2.87]
[1755441035999,2.78,193.45,193.41,2.87]
[1755441037103,2.78,193.45,193.39,2.62403411]
[1755441037299,2.78,193.45,193.42,2.87]
[1755441040303,2.78,193.45,193.4,2.87]
[1755441041104,2.78,193.51,193.4,2.87]
[1755441041405,2.78,193.49,193.4,2.87]
[1755441041601,8.40839816,193.48,193.4,2.87]
[1755441041797,8.40839816,193.47,193.4,2.87]
[1755441041997,2.78,193.45,193.4,2.87]
[1755441042499,8.41016493,193.44,193.39,2.62403411]
[1755441042698,2.78,193.43,193.41,2.87]
[1755441046605,8.58349948,193.5,193.39,2.62403411]
[1755441046799,12.42233483,193.49,193.39,2.62403411]
[1755441047000,2.78,193.47,193.39,2.62403411]
[1755441047196,8.41674048,193.46,193.39,2.62403411]
[1755441047400,2.78,193.44,193.39,5.49403411]
[1755441047595,8.41674048,193.43,193.39,2.62403411]
[1755441047796,2.76,193.49,193.4,2.88]
[1755441047997,9.71095804,193.48,193.4,2.88]
[1755441048302,2.76,193.46,193.4,2.88]
[1755441048605,2.76,193.44,193.41,2.88]
[1755441048806,2.76,193.42,193.41,2.88]
[1755441049907,7.42444783,193.42,193.37,2.88]
[1755441050108,8.42485282,193.41,193.37,2.88]
[1755441050301,5.80349948,193.48,193.37,2.88]
[1755441050609,2.76,193.39,193.37,2.88]
[1755441050801,5.80349948,193.48,193.37,2.88]
[1755441051001,2.76,193.4,193.37,2.88]
[1755441053703,2.76,193.41,193.37,2.88]
[1755441055813,2.76,193.4,193.37,2.88]
[1755441058811,2.76,193.49,193.37,2.88]
[1755441059017,2.76,193.47,193.37,2.88]
[1755441059219,2.76,193.45,193.37,2.88]
[1755441059418,2.76,193.43,193.37,2.88]
[1755441060322,2.76,193.43,193.4,1.67565696]
[1755441060509,8.44853198,193.42,193.4,1.67565696]
[1755441060714,2.76,193.41,193.4,1.67565696]
[1755441061313,6.52447361,193.41,193.38,4.55565696]
[1755441061519,4.68413363,193.45,193.38,4.55565696]
[1755441061520,2.76,193.39,193.38,4.55565696]
[1755441063023,2.76,193.39,193.38,1.67565696]
[1755441063922,2.76,193.39,193.38,4.55565696]
[1755441064324,2.76,193.39,193.38,2.88]
[1755441065320,2.76,193.39,193.36,2.88]
[1755441065623,2.76,193.38,193.37,2.88]
[1755441066321,8.70524923,193.51,193.37,2.88]
[1755441066322,2.76,193.43,193.37,2.88]
[1755441066526,2.76,193.42,193.4,2.88]
[1755441068327,8.42255231,193.51,193.4,2.88]
[1755441068533,2.76,193.46,193.4,2.88]
[1755441068831,2.76,193.44,193.4,2.88]
[1755441069233,2.76,193.44,193.43,2.88]
[1755441069427,2.76,193.51,193.42,2.61905283]
[1755441069626,2.76,193.49,193.43,2.88]
[1755441069826,2.76,193.47,193.43,2.88]
[1755441070025,2.76,193.45,193.43,2.88]
[1755441070232,5.80349948,193.52,193.42,2.61905283]
[1755441070432,2.76,193.44,193.42,2.61905283]
[1755441070833,2.76,193.44,193.43,2.88]
[1755441074334,2.76,193.51,193.42,2.61905283]
[1755441074535,2.76,193.49,193.42,2.61905283]
[1755441074735,2.76,193.47,193.44,2.88]
[1755441074925,8.4513306,193.46,193.44,2.88]
[1755441075235,2.76,193.44,193.4,2.88]
[1755441075424,8.4521101,193.43,193.38,2.88]
[1755441075626,2.76,193.4,193.38,2.88]
[1755441076336,5.80349948,193.5,193.38,2.88]
[1755441076533,2.76,193.41,193.38,2.88]
[1755441076932,2.76,193.49,193.38,2.88]
[1755441077133,2.76,193.47,193.38,2.88]
[1755441077333,2.76,193.45,193.38,2.88]
[1755441077534,3.03,193.42,193.38,2.88]
[1755441078342,3.03,193.5,193.39,5.38905283]
[1755441078641,3.03,193.48,193.4,2.77]
[1755441078843,3.03,193.46,193.4,2.77]
[1755441079130,3.03,193.44,193.32,2.77]
[1755441079338,3.03,193.42,193.35,2.77]
[1755441079537,3.03,193.4,193.35,2.77]
[1755441079743,3.03,193.4,193.36,2.77]
[1755441080036,3.03,193.4,193.33,2.61905283]
[1755441080337,3.03,193.4,193.34,2.77]
[1755441085836,8.44506899,193.39,193.34,2.77]
[1755441086138,3.03,193.38,193.35,2.77]
[1755441087239,3.03,193.37,193.36,2.77]
[1755441087937,3.03,193.37,193.34,2.77]
[1755441088137,3.03,193.37,193.33,2.61905283]
[1755441088332,3.03,193.37,193.3,128.53905283]
[1755441088540,8.4446204,193.36,193.3,131.30905283]
[1755441088836,3.03,193.35,193.3,128.53905283]
[1755441089037,3.03,193.35,193.31,97.64516127]
[1755441092540,3.03,193.35,193.31,94.87516127]
[1755441093940,3.03,193.38,193.25,2.77]
[1755441094135,2.61905283,193.39,193.26,128.63]
[1755441094136,3.03,193.36,193.26,128.63]
[1755441094440,3.03,193.34,193.26,128.63]
[1755441094641,3.03,193.34,193.27,2.77]
[1755441096144,3.03,193.32,193.22,2.61905283]
[1755441096343,3.03,193.32,193.23,125.86]
[1755441096646,3.03,193.32,193.24,2.77]
[1755441100144,3.03,193.32,193.23,125.86]
[1755441100347,3.03,193.32,193.24,2.77]
[1755441101646,3.03,193.32,193.23,125.86]
[1755441101948,3.03,193.32,193.23,128.63]
[1755441103247,3.03,193.32,193.24,2.77]
[1755441104449,3.03,193.32,193.22,2.77]
[1755441105948,8.39336448,193.31,193.22,2.77]
[1755441106148,3.03,193.3,193.22,2.77]
[1755441109248,2.99,193.29,193.2,2.76]
[1755441111751,2.99,193.29,193.21,2.76]
[1755441115049,2.99,193.29,193.23,2.61905283]
[1755441115245,2.99,193.29,193.24,2.76]
[1755441115453,2.99,193.37,193.24,2.76]
[1755441115654,2.99,193.35,193.24,2.76]
[1755441115853,2.99,193.33,193.26,2.61905283]
[1755441116051,2.99,193.33,193.27,2.76]
[1755441118649,2.99,193.4,193.27,2.76]
[1755441118851,2.99,193.38,193.27,2.76]
[1755441119045,2.99,193.36,193.27,2.76]
[1755441121454,2.99,193.36,193.3,2.76]
[1755441123959,2.99,193.34,193.3,2.76]
[1755441125258,2.99,193.34,193.31,2.76]
[1755441125660,2.99,193.34,193.26,2.61905283]
[1755441125860,2.99,193.34,193.27,2.76]
[1755441126360,8.41401168,193.33,193.27,2.76]
[1755441126560,2.99,193.3,193.29,2.76]
[1755441132664,2.99,193.35,193.23,2.61905283]
[1755441132863,2.99,193.33,193.24,2.76]
[1755441133063,2.99,193.31,193.24,2.76]
[1755441133367,2.99,193.29,193.24,2.76]
[1755441133665,4.66123576,193.28,193.23,5.37905283]
[1755441133868,2.99,193.29,193.24,2.76]
[1755441134061,2.99,193.27,193.25,2.76]
[1755441136272,2.99,193.27,193.23,2.61905283]
[1755441136467,2.99,193.27,193.24,2.76]
[1755441137075,2.61905283,193.33,193.25,2.76]
[1755441137276,2.99,193.26,193.25,2.76]
[1755441138771,2.99,193.26,193.21,3.03]
[1755441139074,2.99,193.26,193.22,3.03]
[1755441139270,2.99,193.26,193.2,2.61905283]
[1755441139475,2.99,193.26,193.23,3.03]
[1755441139674,2.76,193.35,193.24,3.03]
[1755441139877,2.76,193.33,193.27,3.03]
[1755441140079,8.4467209,193.32,193.27,3.03]
[1755441140377,2.76,193.31,193.27,3.03]
[1755441140576,2.76,193.33,193.27,3.03]
[1755441144082,2.76,193.33,193.29,2.61905283]
[1755441144281,2.76,193.33,193.3,3.03]
[1755441145876,2.76,193.35,193.3,3.03]
[1755441146691,2.76,193.35,193.31,3.03]
[1755441147092,2.76,193.35,193.29,2.61905283]
[1755441147288,2.76,193.34,193.3,3.03]
[1755441149494,2.61905283,193.42,193.3,3.03]
[1755441149686,2.76,193.4,193.3,3.03]
[1755441149887,8.43057342,193.39,193.3,3.03]
[1755441150086,8.43057342,193.38,193.3,3.03]
[1755441150282,8.43057342,193.37,193.3,3.03]
[1755441150490,2.76,193.36,193.3,3.03]
[1755441150693,355.80255231,193.44,193.33,3.03]
[1755441150993,2.76,193.42,193.35,2.61905283]
[1755441151288,2.76,193.4,193.36,3.03]
[1755441151496,2.76,193.46,193.36,3.03]
[1755441151689,128.91905283,193.47,193.36,3.03]
[1755441151690,9.71812504,193.45,193.36,3.03]
[1755441151889,8.42583635,193.44,193.36,3.03]
[1755441152087,2.76,193.42,193.36,3.03]
[1755441152289,8.42309551,193.41,193.36,3.03]
[1755441152488,2.76,193.39,193.33,3.03]
[1755441154391,2.76,193.39,193.31,3.03]
[1755441156783,2.76,193.39,193.32,2.61905283]
[1755441156991,2.76,193.39,193.36,3.03]
[1755441157190,2.76,193.46,193.39,3.03]
[1755441157493,2.76,193.44,193.39,3.03]
[1755441159596,2.76,193.44,193.38,2.61905283]
[1755441159791,2.76,193.44,193.38,5.64905283]
[1755441160593,2.76,193.44,193.38,2.61905283]
[1755441161292,2.76,193.44,193.38,5.64905283]
[1755441162898,2.76,193.44,193.39,3.03]
[1755441163097,2.76,193.44,193.38,5.64905283]
[1755441164302,2.76,193.44,193.39,3.03]
[1755441165000,2.76,193.44,193.38,2.61905283]
[1755441165203,2.76,193.44,193.35,3.03]
[1755441165390,3.75802311,193.43,193.35,3.03]
[1755441165590,2.76,193.42,193.35,3.03]
[1755441166701,2.76,193.42,193.37,3.03]
[1755441166900,2.76,193.48,193.37,3.03]
[1755441167092,2.76,193.46,193.37,3.03]
[1755441167901,2.94,193.51,193.39,2.61905283]
[1755441168104,2.94,193.49,193.4,2.94]
[1755441168298,2.94,193.47,193.4,2.94]
[1755441168496,8.40636326,193.46,193.4,2.94]
[1755441168700,2.94,193.44,193.4,2.94]
[1755441168900,2.94,193.43,193.4,2.94]
[1755441171708,15.52,193.52,193.4,2.94]
[1755441171709,2.94,193.52,193.4,2.94]
[1755441171910,8.39760899,193.51,193.4,2.94]
[1755441172103,8.39760899,193.5,193.4,2.94]
[1755441172309,2.94,193.48,193.4,2.94]
[1755441180114,2.94,193.48,193.41,2.94]
[1755441181714,2.94,193.48,193.38,5.55905283]
[1755441181915,8.37375857,193.47,193.38,2.61905283]
[1755441182115,2.94,193.46,193.39,2.94]
[1755441184221,4.62970586,193.45,193.39,2.94]
[1755441184419,2.94,193.44,193.39,2.94]
[1755441184720,2.94,193.44,193.36,2.61905283]
[1755441184916,2.94,193.42,193.36,2.61905283]
[1755441185322,2.94,193.42,193.37,2.94]
[1755441185516,2.94,193.42,193.38,2.94]
[1755441185912,2.94,193.42,193.39,2.94]
[1755441186320,2.94,193.46,193.34,2.94]
[1755441186527,2.94,193.44,193.34,2.94]
[1755441186725,2.94,193.42,193.34,2.94]
[1755441186913,8.39382214,193.41,193.34,2.94]
[1755441187114,7.57496459,193.4,193.34,2.94]
[1755441187322,2.94,193.4,193.34,2.94]
[1755441189721,2.94,193.4,193.35,2.61905283]
[1755441189919,2.94,193.42,193.36,2.94]
[1755441190120,2.94,193.42,193.39,2.94]
[1755441190425,2.61905283,193.49,193.39,2.94]
[1755441190426,2.94,193.43,193.39,2.94]
[1755441190825,2.94,193.49,193.32,2.61905283]
[1755441191019,2.94,193.47,193.42,2.94]
[1755441191220,11.3411121,193.46,193.42,2.94]
[1755441191420,2.94,193.46,193.42,2.94]
[1755441191825,2.94,193.45,193.42,2.94]
[1755441192228,2.61905283,193.52,193.42,2.94]
[1755441192429,2.94,193.5,193.42,2.94]
[1755441192626,2.94,193.48,193.42,2.94]
[1755441192827,2.94,193.46,193.43,2.94]
[1755441193030,2.94,193.46,193.41,2.61905283]
[1755441193328,2.94,193.45,193.44,2.94]
[1755441194624,2.61905283,193.52,193.44,2.94]
[1755441194827,2.94,193.46,193.44,2.94]
[1755441195021,2.94,193.46,193.45,2.94]
[1755441195930,2.94,193.53,193.45,2.94]
[1755441196122,2.94,193.51,193.45,2.94]
[1755441196323,2.94,193.49,193.45,2.94]
[1755441196522,2.94,193.47,193.41,5.55905283]
[1755441196724,8.40736188,193.46,193.41,2.61905283]
[1755441197030,2.94,193.45,193.43,2.94]
[1755441197624,2.77,193.44,193.43,2.94]
[1755441202630,2.77,193.51,193.43,2.94]
[1755441202945,2.77,193.49,193.43,2.94]
[1755441203124,2.77,193.47,193.43,2.94]
[1755441203327,11.19076781,193.46,193.43,2.94]
[1755441203527,2.77,193.46,193.43,2.94]
[1755441203728,2.77,193.45,193.43,2.94]
[1755441203930,2.77,193.45,193.44,2.82]
[1755441205535,7.39312795,193.45,193.4,2.61905283]
[1755441205739,3.7755052,193.44,193.42,2.82]
[1755441205939,2.77,193.43,193.42,2.82]
[1755441208032,2.61905283,193.49,193.37,5.43905283]
[1755441208228,2.77,193.47,193.38,2.82]
[1755441208442,2.77,193.45,193.38,2.82]
[1755441208636,2.77,193.43,193.38,2.82]
[1755441210638,2.77,193.43,193.39,2.82]
[1755441211134,3.77712598,193.42,193.39,2.82]
[1755441211328,2.77,193.41,193.39,2.82]
[1755441211940,2.77,193.48,193.39,2.82]
[1755441212135,2.77,193.46,193.39,2.82]
[1755441212347,2.77,193.44,193.39,2.82]